{"text_format":"3","workbook":"xlsx","n_sheets":1,"sheets":["Lični mesečni budžet"],"read":"whole","date_system":"1900"}

{"sheet":"Lični mesečni budžet","index":0,"n_rows":64,"n_cols":10,"rows_kept":64,"merged":[[1,1,1,9],[2,1,2,9],[4,1,6,1],[4,2,4,3],[4,6,5,8],[4,9,5,9],[5,2,5,3],[6,2,6,3],[6,6,7,8],[6,9,7,9],[7,1,9,1],[7,2,7,3],[8,2,8,3],[8,6,9,8],[8,9,9,9],[9,2,9,3],[22,6,22,9],[23,1,23,4],[31,6,31,9],[33,1,33,4],[38,6,38,9],[40,1,40,4],[44,6,44,9],[46,1,46,4],[50,6,50,9],[54,1,54,4],[57,6,57,9],[58,6,59,8],[58,9,59,9],[60,6,61,8],[60,9,61,9],[62,6,63,8],[62,9,63,9]]}
[]
[null,"Lični mesečni budžet"]
[]
[]
[null,"PREDVIĐENI MESEČNI PRIHOD","Prihod 1",null,{"v":2500,"d":"2,500 RSD"},null,"PREDVIĐENI SALDO (predviđeni prihod minus troškovi)",null,null,{"$f":"E7-J59","v":{"v":940,"d":"940 RSD"}}]
[null,null,"Dodatni prihod",null,{"v":500,"d":"500 RSD"}]
[null,null,"Ukupan mesečni prihod",null,{"$f":"SUM(E5:E6)","v":{"v":3000,"d":"3,000 RSD"}},null,"STVARNI SALDO (stvarni prihod minus troškovi)",null,null,{"$f":"E10-J61","v":{"v":960,"d":"960 RSD"}}]
[null,"STVARNI MESEČNI PRIHOD","Prihod 1",null,{"v":2500,"d":"2,500 RSD"}]
[null,null,"Dodatni prihod",null,{"v":500,"d":"500 RSD"},null,"RAZLIKA (stvarni minus predviđeni)",null,null,{"$f":"J7-J5","v":{"v":20,"d":"20 RSD"}}]
[null,null,"Ukupan mesečni prihod",null,{"$f":"SUM(E8:E9)","v":{"v":3000,"d":"3,000 RSD"}}]
[]
[null,"DOMAĆINSTVO","Predviđeni trošak","Stvarni trošak","Razlika",null,"ZABAVA","Predviđeni trošak","Stvarni trošak","Razlika"]
[null,"Hipoteka ili izdavanje",{"v":1500,"d":"1,500 RSD"},{"v":1400,"d":"1,400 RSD"},{"$f":"Tabela1[[#This Row],[Predviđeni trošak]]-Tabela1[[#This Row],[Stvarni trošak]]","v":{"v":100,"d":"100 RSD"}},null,"Video/DVD",{"v":0,"d":"0 RSD"},{"v":50,"d":"50 RSD"},{"$f":"Tabela2[[#This Row],[Predviđeni trošak]]-Tabela2[[#This Row],[Stvarni trošak]]","v":{"v":-50,"d":"-50 RSD"}}]
[null,"Telefon",{"v":60,"d":"60 RSD"},{"v":100,"d":"100 RSD"},{"$f":"Tabela1[[#This Row],[Predviđeni trošak]]-Tabela1[[#This Row],[Stvarni trošak]]","v":{"v":-40,"d":"-40 RSD"}},null,"CD-ovi",null,null,{"$f":"Tabela2[[#This Row],[Predviđeni trošak]]-Tabela2[[#This Row],[Stvarni trošak]]","v":{"v":0,"d":"0 RSD"}}]
[null,"Struja",{"v":50,"d":"50 RSD"},{"v":60,"d":"60 RSD"},{"$f":"Tabela1[[#This Row],[Predviđeni trošak]]-Tabela1[[#This Row],[Stvarni trošak]]","v":{"v":-10,"d":"-10 RSD"}},null,"Filmovi",null,null,{"$f":"Tabela2[[#This Row],[Predviđeni trošak]]-Tabela2[[#This Row],[Stvarni trošak]]","v":{"v":0,"d":"0 RSD"}}]
[null,"Gas",{"v":200,"d":"200 RSD"},{"v":180,"d":"180 RSD"},{"$f":"Tabela1[[#This Row],[Predviđeni trošak]]-Tabela1[[#This Row],[Stvarni trošak]]","v":{"v":20,"d":"20 RSD"}},null,"Koncerti",null,null,{"$f":"Tabela2[[#This Row],[Predviđeni trošak]]-Tabela2[[#This Row],[Stvarni trošak]]","v":{"v":0,"d":"0 RSD"}}]
[null,"Voda i kanalizacija",null,null,{"$f":"Tabela1[[#This Row],[Predviđeni trošak]]-Tabela1[[#This Row],[Stvarni trošak]]","v":{"v":0,"d":"0 RSD"}},null,"Sportski događaji",null,null,{"$f":"Tabela2[[#This Row],[Predviđeni trošak]]-Tabela2[[#This Row],[Stvarni trošak]]","v":{"v":0,"d":"0 RSD"}}]
[null,"Kablovska televizija",null,null,{"$f":"Tabela1[[#This Row],[Predviđeni trošak]]-Tabela1[[#This Row],[Stvarni trošak]]","v":{"v":0,"d":"0 RSD"}},null,"Pozorište",null,null,{"$f":"Tabela2[[#This Row],[Predviđeni trošak]]-Tabela2[[#This Row],[Stvarni trošak]]","v":{"v":0,"d":"0 RSD"}}]
[null,"Uklanjanje otpada",null,null,{"$f":"Tabela1[[#This Row],[Predviđeni trošak]]-Tabela1[[#This Row],[Stvarni trošak]]","v":{"v":0,"d":"0 RSD"}},null,"Drugo",null,null,{"$f":"Tabela2[[#This Row],[Predviđeni trošak]]-Tabela2[[#This Row],[Stvarni trošak]]","v":{"v":0,"d":"0 RSD"}}]
[null,"Održavanje ili popravke",null,null,{"$f":"Tabela1[[#This Row],[Predviđeni trošak]]-Tabela1[[#This Row],[Stvarni trošak]]","v":{"v":0,"d":"0 RSD"}},null,"Drugo",null,null,{"$f":"Tabela2[[#This Row],[Predviđeni trošak]]-Tabela2[[#This Row],[Stvarni trošak]]","v":{"v":0,"d":"0 RSD"}}]
[null,"Pribor",null,null,{"$f":"Tabela1[[#This Row],[Predviđeni trošak]]-Tabela1[[#This Row],[Stvarni trošak]]","v":{"v":0,"d":"0 RSD"}},null,"Drugo",null,null,{"$f":"Tabela2[[#This Row],[Predviđeni trošak]]-Tabela2[[#This Row],[Stvarni trošak]]","v":{"v":0,"d":"0 RSD"}}]
[null,"Drugo",null,null,{"$f":"Tabela1[[#This Row],[Predviđeni trošak]]-Tabela1[[#This Row],[Stvarni trošak]]","v":{"v":0,"d":"0 RSD"}},null,"Zbir",{"$f":"SUBTOTAL(109,Tabela2[Predviđeni trošak])","v":{"v":0,"d":"0 RSD"}},{"$f":"SUBTOTAL(109,Tabela2[Stvarni trošak])","v":{"v":50,"d":"50 RSD"}},{"$f":"SUBTOTAL(109,Tabela2[Razlika])","v":{"v":-50,"d":"-50 RSD"}}]
[null,"Zbir",{"$f":"SUBTOTAL(109,Tabela1[Predviđeni trošak])","v":{"v":1810,"d":"1,810 RSD"}},{"$f":"SUBTOTAL(109,Tabela1[Stvarni trošak])","v":{"v":1740,"d":"1,740 RSD"}},{"$f":"SUBTOTAL(109,Tabela1[Razlika])","v":{"v":70,"d":"70 RSD"}}]
[{"$nulls":6},"ZAJMOVI","Predviđeni trošak","Stvarni trošak","Razlika"]
[null,"PREVOZ","Predviđeni trošak","Stvarni trošak","Razlika",null,"Lično",null,null,{"$f":"Tabela8[[#This Row],[Predviđeni trošak]]-Tabela8[[#This Row],[Stvarni trošak]]","v":{"v":0,"d":"0 RSD"}}]
[null,"Otplata vozila",{"v":250,"d":"250 RSD"},{"v":250,"d":"250 RSD"},{"$f":"Tabela3[[#This Row],[Predviđeni trošak]]-Tabela3[[#This Row],[Stvarni trošak]]","v":{"v":0,"d":"0 RSD"}},null,"Studentski",null,null,{"$f":"Tabela8[[#This Row],[Predviđeni trošak]]-Tabela8[[#This Row],[Stvarni trošak]]","v":{"v":0,"d":"0 RSD"}}]
[null,"Naknada za autobus/taksi",null,null,{"$f":"Tabela3[[#This Row],[Predviđeni trošak]]-Tabela3[[#This Row],[Stvarni trošak]]","v":{"v":0,"d":"0 RSD"}},null,"Kreditna kartica",null,null,{"$f":"Tabela8[[#This Row],[Predviđeni trošak]]-Tabela8[[#This Row],[Stvarni trošak]]","v":{"v":0,"d":"0 RSD"}}]
[null,"Osiguranje",null,null,{"$f":"Tabela3[[#This Row],[Predviđeni trošak]]-Tabela3[[#This Row],[Stvarni trošak]]","v":{"v":0,"d":"0 RSD"}},null,"Kreditna kartica",null,null,{"$f":"Tabela8[[#This Row],[Predviđeni trošak]]-Tabela8[[#This Row],[Stvarni trošak]]","v":{"v":0,"d":"0 RSD"}}]
[null,"Vozačka dozvola",null,null,{"$f":"Tabela3[[#This Row],[Predviđeni trošak]]-Tabela3[[#This Row],[Stvarni trošak]]","v":{"v":0,"d":"0 RSD"}},null,"Kreditna kartica",null,null,{"$f":"Tabela8[[#This Row],[Predviđeni trošak]]-Tabela8[[#This Row],[Stvarni trošak]]","v":{"v":0,"d":"0 RSD"}}]
[null,"Gorivo",null,null,{"$f":"Tabela3[[#This Row],[Predviđeni trošak]]-Tabela3[[#This Row],[Stvarni trošak]]","v":{"v":0,"d":"0 RSD"}},null,"Drugo",null,null,{"$f":"Tabela8[[#This Row],[Predviđeni trošak]]-Tabela8[[#This Row],[Stvarni trošak]]","v":{"v":0,"d":"0 RSD"}}]
[null,"Održavanje",null,null,{"$f":"Tabela3[[#This Row],[Predviđeni trošak]]-Tabela3[[#This Row],[Stvarni trošak]]","v":{"v":0,"d":"0 RSD"}},null,"Zbir",{"$f":"SUBTOTAL(109,Tabela8[Predviđeni trošak])","v":{"v":0,"d":"0 RSD"}},{"$f":"SUBTOTAL(109,Tabela8[Stvarni trošak])","v":{"v":0,"d":"0 RSD"}},{"$f":"SUBTOTAL(109,Tabela8[Razlika])","v":{"v":0,"d":"0 RSD"}}]
[null,"Drugo",null,null,{"$f":"Tabela3[[#This Row],[Predviđeni trošak]]-Tabela3[[#This Row],[Stvarni trošak]]","v":{"v":0,"d":"0 RSD"}}]
[null,"Zbir",{"$f":"SUBTOTAL(109,Tabela3[Predviđeni trošak])","v":{"v":250,"d":"250 RSD"}},{"$f":"SUBTOTAL(109,Tabela3[Stvarni trošak])","v":{"v":250,"d":"250 RSD"}},{"$f":"SUBTOTAL(109,Tabela3[Razlika])","v":{"v":0,"d":"0 RSD"}},null,"POREZI","Predviđeni trošak","Stvarni trošak","Razlika"]
[{"$nulls":6},"Savezni",null,null,{"$f":"Tabela9[[#This Row],[Predviđeni trošak]]-Tabela9[[#This Row],[Stvarni trošak]]","v":{"v":0,"d":"0 RSD"}}]
[null,"OSIGURANJE","Predviđeni trošak","Stvarni trošak","Razlika",null,"Državni",null,null,{"$f":"Tabela9[[#This Row],[Predviđeni trošak]]-Tabela9[[#This Row],[Stvarni trošak]]","v":{"v":0,"d":"0 RSD"}}]
[null,"Kuća",null,null,{"$f":"Tabela4[[#This Row],[Predviđeni trošak]]-Tabela4[[#This Row],[Stvarni trošak]]","v":{"v":0,"d":"0 RSD"}},null,"Lokalni",null,null,{"$f":"Tabela9[[#This Row],[Predviđeni trošak]]-Tabela9[[#This Row],[Stvarni trošak]]","v":{"v":0,"d":"0 RSD"}}]
[null,"Zdravstveno",null,null,{"$f":"Tabela4[[#This Row],[Predviđeni trošak]]-Tabela4[[#This Row],[Stvarni trošak]]","v":{"v":0,"d":"0 RSD"}},null,"Drugo",null,null,{"$f":"Tabela9[[#This Row],[Predviđeni trošak]]-Tabela9[[#This Row],[Stvarni trošak]]","v":{"v":0,"d":"0 RSD"}}]
[null,"Životno",null,null,{"$f":"Tabela4[[#This Row],[Predviđeni trošak]]-Tabela4[[#This Row],[Stvarni trošak]]","v":{"v":0,"d":"0 RSD"}},null,"Zbir",{"$f":"SUBTOTAL(109,Tabela9[Predviđeni trošak])","v":{"v":0,"d":"0 RSD"}},{"$f":"SUBTOTAL(109,Tabela9[Stvarni trošak])","v":{"v":0,"d":"0 RSD"}},{"$f":"SUBTOTAL(109,Tabela9[Razlika])","v":{"v":0,"d":"0 RSD"}}]
[null,"Drugo",null,null,{"$f":"Tabela4[[#This Row],[Predviđeni trošak]]-Tabela4[[#This Row],[Stvarni trošak]]","v":{"v":0,"d":"0 RSD"}}]
[null,"Zbir",{"$f":"SUBTOTAL(109,Tabela4[Predviđeni trošak])","v":{"v":0,"d":"0 RSD"}},{"$f":"SUBTOTAL(109,Tabela4[Stvarni trošak])","v":{"v":0,"d":"0 RSD"}},{"$f":"SUBTOTAL(109,Tabela4[Razlika])","v":{"v":0,"d":"0 RSD"}},null,"ŠTEDNJA ILI ULAGANJA","Predviđeni trošak","Stvarni trošak","Razlika"]
[{"$nulls":6},"Penzioni račun",null,null,{"$f":"Tabela10[[#This Row],[Predviđeni trošak]]-Tabela10[[#This Row],[Stvarni trošak]]","v":{"v":0,"d":"0 RSD"}}]
[null,"HRANA","Predviđeni trošak","Stvarni trošak","Razlika",null,"Ulagački račun",null,null,{"$f":"Tabela10[[#This Row],[Predviđeni trošak]]-Tabela10[[#This Row],[Stvarni trošak]]","v":{"v":0,"d":"0 RSD"}}]
[null,"Namirnice",null,null,{"$f":"Tabela5[[#This Row],[Predviđeni trošak]]-Tabela5[[#This Row],[Stvarni trošak]]","v":{"v":0,"d":"0 RSD"}},null,"Drugo",null,null,{"$f":"Tabela10[[#This Row],[Predviđeni trošak]]-Tabela10[[#This Row],[Stvarni trošak]]","v":{"v":0,"d":"0 RSD"}}]
[null,"Restorani",null,null,{"$f":"Tabela5[[#This Row],[Predviđeni trošak]]-Tabela5[[#This Row],[Stvarni trošak]]","v":{"v":0,"d":"0 RSD"}},null,"Zbir",{"$f":"SUBTOTAL(109,Tabela10[Predviđeni trošak])","v":{"v":0,"d":"0 RSD"}},{"$f":"SUBTOTAL(109,Tabela10[Stvarni trošak])","v":{"v":0,"d":"0 RSD"}},{"$f":"SUBTOTAL(109,Tabela10[Razlika])","v":{"v":0,"d":"0 RSD"}}]
[null,"Drugo",null,null,{"$f":"Tabela5[[#This Row],[Predviđeni trošak]]-Tabela5[[#This Row],[Stvarni trošak]]","v":{"v":0,"d":"0 RSD"}}]
[null,"Zbir",{"$f":"SUBTOTAL(109,Tabela5[Predviđeni trošak])","v":{"v":0,"d":"0 RSD"}},{"$f":"SUBTOTAL(109,Tabela5[Stvarni trošak])","v":{"v":0,"d":"0 RSD"}},{"$f":"SUBTOTAL(109,Tabela5[Razlika])","v":{"v":0,"d":"0 RSD"}},null,"POKLONI I DONACIJE","Predviđeni trošak","Stvarni trošak","Razlika"]
[{"$nulls":6},"Dobrotvorni prilog 1",null,null,{"$f":"Tabela11[[#This Row],[Predviđeni trošak]]-Tabela11[[#This Row],[Stvarni trošak]]","v":{"v":0,"d":"0 RSD"}}]
[null,"LJUBIMCI","Predviđeni trošak","Stvarni trošak","Razlika",null,"Dobrotvorni prilog 2",null,null,{"$f":"Tabela11[[#This Row],[Predviđeni trošak]]-Tabela11[[#This Row],[Stvarni trošak]]","v":{"v":0,"d":"0 RSD"}}]
[null,"Hrana",null,null,{"$f":"Tabela6[[#This Row],[Predviđeni trošak]]-Tabela6[[#This Row],[Stvarni trošak]]","v":{"v":0,"d":"0 RSD"}},null,"Dobrotvorni prilog 3",null,null,{"$f":"Tabela11[[#This Row],[Predviđeni trošak]]-Tabela11[[#This Row],[Stvarni trošak]]","v":{"v":0,"d":"0 RSD"}}]
[null,"Zdravstvo",null,null,{"$f":"Tabela6[[#This Row],[Predviđeni trošak]]-Tabela6[[#This Row],[Stvarni trošak]]","v":{"v":0,"d":"0 RSD"}},null,"Zbir",{"$f":"SUBTOTAL(109,Tabela11[Predviđeni trošak])","v":{"v":0,"d":"0 RSD"}},{"$f":"SUBTOTAL(109,Tabela11[Stvarni trošak])","v":{"v":0,"d":"0 RSD"}},{"$f":"SUBTOTAL(109,Tabela11[Razlika])","v":{"v":0,"d":"0 RSD"}}]
[null,"Doterivanje",null,null,{"$f":"Tabela6[[#This Row],[Predviđeni trošak]]-Tabela6[[#This Row],[Stvarni trošak]]","v":{"v":0,"d":"0 RSD"}}]
[null,"Igračke",null,null,{"$f":"Tabela6[[#This Row],[Predviđeni trošak]]-Tabela6[[#This Row],[Stvarni trošak]]","v":{"v":0,"d":"0 RSD"}},null,"PRAVNI ASPEKTI","Predviđeni trošak","Stvarni trošak","Razlika"]
[null,"Drugo",null,null,{"$f":"Tabela6[[#This Row],[Predviđeni trošak]]-Tabela6[[#This Row],[Stvarni trošak]]","v":{"v":0,"d":"0 RSD"}},null,"Advokat",null,null,{"$f":"Tabela12[[#This Row],[Predviđeni trošak]]-Tabela12[[#This Row],[Stvarni trošak]]","v":{"v":0,"d":"0 RSD"}}]
[null,"Zbir",{"$f":"SUBTOTAL(109,Tabela6[Predviđeni trošak])","v":{"v":0,"d":"0 RSD"}},{"$f":"SUBTOTAL(109,Tabela6[Stvarni trošak])","v":{"v":0,"d":"0 RSD"}},{"$f":"SUBTOTAL(109,Tabela6[Razlika])","v":{"v":0,"d":"0 RSD"}},null,"Alimentacija",null,null,{"$f":"Tabela12[[#This Row],[Predviđeni trošak]]-Tabela12[[#This Row],[Stvarni trošak]]","v":{"v":0,"d":"0 RSD"}}]
[{"$nulls":6},"Isplate zasnovane na zapleni ili sudskoj odluci",null,null,{"$f":"Tabela12[[#This Row],[Predviđeni trošak]]-Tabela12[[#This Row],[Stvarni trošak]]","v":{"v":0,"d":"0 RSD"}}]
[null,"LIČNA NEGA","Predviđeni trošak","Stvarni trošak","Razlika",null,"Drugo",null,null,{"$f":"Tabela12[[#This Row],[Predviđeni trošak]]-Tabela12[[#This Row],[Stvarni trošak]]","v":{"v":0,"d":"0 RSD"}}]
[null,"Medicinski troškovi",null,null,{"$f":"Tabela7[[#This Row],[Predviđeni trošak]]-Tabela7[[#This Row],[Stvarni trošak]]","v":{"v":0,"d":"0 RSD"}},null,"Zbir",{"$f":"SUBTOTAL(109,Tabela12[Predviđeni trošak])","v":{"v":0,"d":"0 RSD"}},{"$f":"SUBTOTAL(109,Tabela12[Stvarni trošak])","v":{"v":0,"d":"0 RSD"}},{"$f":"SUBTOTAL(109,Tabela12[Razlika])","v":{"v":0,"d":"0 RSD"}}]
[null,"Kosa/nokti",null,null,{"$f":"Tabela7[[#This Row],[Predviđeni trošak]]-Tabela7[[#This Row],[Stvarni trošak]]","v":{"v":0,"d":"0 RSD"}}]
[null,"Odeća",null,null,{"$f":"Tabela7[[#This Row],[Predviđeni trošak]]-Tabela7[[#This Row],[Stvarni trošak]]","v":{"v":0,"d":"0 RSD"}},null,"UKUPNI PREDVIĐENI TROŠAK",null,null,{"$f":"SUM(C23,C33,C40,C46,C54,C64,H22,H31,H38,H44,H50,H57)","v":{"v":2060,"d":"2,060 RSD"}}]
[null,"Hemijsko čišćenje",null,null,{"$f":"Tabela7[[#This Row],[Predviđeni trošak]]-Tabela7[[#This Row],[Stvarni trošak]]","v":{"v":0,"d":"0 RSD"}}]
[null,"Teretana",null,null,{"$f":"Tabela7[[#This Row],[Predviđeni trošak]]-Tabela7[[#This Row],[Stvarni trošak]]","v":{"v":0,"d":"0 RSD"}},null,"UKUPNI STVARNI TROŠAK",null,null,{"$f":"SUM(D23,D33,D40,D46,D54,D64,I22,I31,I38,I44,I50,I57)","v":{"v":2040,"d":"2,040 RSD"}}]
[null,"Organizacioni dugovi ili naknade",null,null,{"$f":"Tabela7[[#This Row],[Predviđeni trošak]]-Tabela7[[#This Row],[Stvarni trošak]]","v":{"v":0,"d":"0 RSD"}}]
[null,"Drugo",null,null,{"$f":"Tabela7[[#This Row],[Predviđeni trošak]]-Tabela7[[#This Row],[Stvarni trošak]]","v":{"v":0,"d":"0 RSD"}},null,"UKUPNA RAZLIKA",null,null,{"$f":"SUM(E23,E33,E40,E46,E54,E64,J22,J31,J38,J44,J50,J57)","v":{"v":20,"d":"20 RSD"}}]
[null,"Zbir",{"$f":"SUBTOTAL(109,Tabela7[Predviđeni trošak])","v":{"v":0,"d":"0 RSD"}},{"$f":"SUBTOTAL(109,Tabela7[Stvarni trošak])","v":{"v":0,"d":"0 RSD"}},{"$f":"SUBTOTAL(109,Tabela7[Razlika])","v":{"v":0,"d":"0 RSD"}}]